[Event "Titled Tuesday Blitz March 22 Early 2022"]
[White "Johnson, Ben"]
[Black "Omelja, Artem"]
[WhiteFideId "2010917"]
[BlackFideId "14119846"]
[WhiteElo "2211"]
[BlackElo "2382"]
[Result "0-1"]
[Round "03"]
[TimeControl "180+1"]
[Date "2022.03.22"]
[WhiteClock "0:00:16"]
[BlackClock "0:00:05"]

1. Nf3 {[%clk 0:03:00]}  d5 {[%clk 0:02:50]} 2. e3 {[%clk 0:03:00]}  Nf6 {[%clk 0:02:45]} 3. c4 {[%clk 0:03:00]}  c6 {[%clk 0:02:42]} 4. Nc3 {[%clk 0:03:00]}  e6 {[%clk 0:02:42]} 5. b3 {[%clk 0:02:59]}  Nbd7 {[%clk 0:02:42]} 6. Bb2 {[%clk 0:02:59]}  Be7 {[%clk 0:02:42]} 7. Qc2 {[%clk 0:02:50]}  O-O {[%clk 0:02:42]} 8. g4 {[%clk 0:02:48]}  Nxg4 {[%clk 0:02:14]} 9. Rg1 {[%clk 0:02:47]}  Nge5 {[%clk 0:02:07]} 10. Nxe5 {[%clk 0:02:39]}  Nxe5 {[%clk 0:02:08]} 11. O-O-O {[%clk 0:02:36]}  Bf6 {[%clk 0:01:57]} 12. cxd5 {[%clk 0:02:09]}  exd5 {[%clk 0:01:23]} 13. f4 {[%clk 0:01:57]}  Ng6 {[%clk 0:01:22]} 14. Bd3 {[%clk 0:01:53]}  Qe7 {[%clk 0:01:02]} 15. Ne2 {[%clk 0:01:38]}  Bd7 {[%clk 0:00:38]} 16. Ng3 {[%clk 0:01:34]}  Bg4 {[%clk 0:00:08]} 17. Rdf1 {[%clk 0:01:28]}  Rfc8 {[%clk 0:00:08]} 18. Bf5 {[%clk 0:01:23]}  Bxf5 {[%clk 0:00:06]} 19. Nxf5 {[%clk 0:01:24]}  Qe6 {[%clk 0:00:02]} 20. Nxg7 {[%clk 0:01:19]}  Bxg7 {[%clk 0:00:02]} 21. Bxg7 {[%clk 0:01:19]}  Kxg7 {[%clk 0:00:03]} 22. f5 {[%clk 0:01:19]}  Qe4 {[%clk 0:00:04]} 23. fxg6 {[%clk 0:01:01]}  Qxc2+ {[%clk 0:00:03]} 24. Kxc2 {[%clk 0:00:59]}  fxg6 {[%clk 0:00:04]} 25. h4 {[%clk 0:00:54]}  Rf8 {[%clk 0:00:04]} 26. h5 {[%clk 0:00:55]}  Rxf1 {[%clk 0:00:04]} 27. Rxf1 {[%clk 0:00:53]}  gxh5 {[%clk 0:00:02]} 28. Rg1+ {[%clk 0:00:49]}  Kh6 {[%clk 0:00:02]} 29. Rf1 {[%clk 0:00:50]}  Rg8 {[%clk 0:00:01]} 30. Kd3 {[%clk 0:00:48]}  Rg7 {[%clk 0:00:01]} 31. Kd4 {[%clk 0:00:45]}  h4 {[%clk 0:00:02]} 32. Ke5 {[%clk 0:00:45]}  Kh5 {[%clk 0:00:02]} 33. Kf6 {[%clk 0:00:42]}  Rg6+ {[%clk 0:00:03]} 34. Kf5 {[%clk 0:00:39]}  Rg2 {[%clk 0:00:04]} 35. d3 {[%clk 0:00:27]}  h3 {[%clk 0:00:04]} 36. Rh1 {[%clk 0:00:21]}  Kh4 {[%clk 0:00:04]} 37. e4 {[%clk 0:00:21]}  dxe4 {[%clk 0:00:04]} 38. dxe4 {[%clk 0:00:22]}  Kg3 {[%clk 0:00:04]} 39. e5 {[%clk 0:00:22]}  h2 {[%clk 0:00:04]} 40. e6 {[%clk 0:00:15]}  Rg1 {[%clk 0:00:05]} 41. Rxh2 {[%clk 0:00:16]}  Kxh2 {[%clk 0:00:05]} 42. e7 {[%clk 0:00:16]}  Re1 {[%clk 0:00:05]} 43. Kf6 {[%clk 0:00:17]}  h5 {[%clk 0:00:05]} 44. e8=Q {[%clk 0:00:16]}  Rxe8 {[%clk 0:00:05]} 0-1


[Site "https://www.chess.com"]

[Event "Titled Tuesday Blitz March 22 Early 2022"]
[White "Khamdamova, Afruza"]
[Black "Bachmann, Axel"]
[WhiteFideId "14210444"]
[BlackFideId "3700488"]
[WhiteElo "1660"]
[BlackElo "2587"]
[Result "1-0"]
[Round "03"]
[TimeControl "180+1"]
[Date "2022.03.22"]
[WhiteClock "0:00:42"]
[BlackClock "0:00:16"]

1. e4 {[%clk 0:03:00]}  c5 {[%clk 0:02:59]} 2. Nf3 {[%clk 0:03:00]}  d6 {[%clk 0:02:59]} 3. d4 {[%clk 0:03:00]}  cxd4 {[%clk 0:03:00]} 4. Nxd4 {[%clk 0:03:00]}  Nf6 {[%clk 0:03:00]} 5. Nc3 {[%clk 0:03:00]}  a6 {[%clk 0:03:00]} 6. Bg5 {[%clk 0:02:59]}  Nbd7 {[%clk 0:02:58]} 7. f4 {[%clk 0:02:58]}  g6 {[%clk 0:02:56]} 8. Qf3 {[%clk 0:02:49]}  Bg7 {[%clk 0:02:46]} 9. O-O-O {[%clk 0:02:48]}  O-O {[%clk 0:02:34]} 10. g4 {[%clk 0:02:46]}  Qc7 {[%clk 0:01:58]} 11. h4 {[%clk 0:02:37]}  b5 {[%clk 0:01:51]} 12. h5 {[%clk 0:02:35]}  Bb7 {[%clk 0:01:46]} 13. hxg6 {[%clk 0:02:24]}  hxg6 {[%clk 0:01:46]} 14. Qh3 {[%clk 0:02:10]}  Rfc8 {[%clk 0:01:40]} 15. Bh6 {[%clk 0:01:43]}  Bh8 {[%clk 0:01:32]} 16. Bf8 {[%clk 0:01:33]}  Kxf8 {[%clk 0:01:26]} 17. Qxh8+ {[%clk 0:01:28]}  Ng8 {[%clk 0:01:23]} 18. Rh7 {[%clk 0:01:18]}  Nf6 {[%clk 0:01:04]} 19. Qg7+ {[%clk 0:01:07]}  Ke8 {[%clk 0:01:04]} 20. Qxf7+ {[%clk 0:01:06]}  Kd8 {[%clk 0:00:43]} 21. Ne6+ {[%clk 0:01:04]}  Kd7 {[%clk 0:00:41]} 22. Nxc7 {[%clk 0:01:00]}  Nxh7 {[%clk 0:00:34]} 23. N3d5 {[%clk 0:00:49]}  Rxc7 {[%clk 0:00:22]} 24. Nxc7 {[%clk 0:00:47]}  Nhf6 {[%clk 0:00:15]} 25. Nxa8 {[%clk 0:00:44]}  Bxa8 {[%clk 0:00:16]} 26. e5 {[%clk 0:00:42]} 1-0


[Site "https://www.chess.com"]

[Event "Titled Tuesday Blitz March 22 Early 2022"]
[White "Kobalia, Mikhail"]
[Black "Andreikin, Dmitry"]
[WhiteFideId "4119150"]
[BlackFideId "4158814"]
[WhiteElo "2667"]
[BlackElo "2736"]
[Result "0-1"]
[Round "03"]
[TimeControl "180+1"]
[Date "2022.03.22"]
[WhiteClock "0:00:03"]
[BlackClock "0:00:19"]

1. e4 {[%clk 0:02:56]}  c5 {[%clk 0:02:59]} 2. Nf3 {[%clk 0:02:56]}  e6 {[%clk 0:03:00]} 3. d4 {[%clk 0:02:55]}  cxd4 {[%clk 0:03:01]} 4. Nxd4 {[%clk 0:02:55]}  a6 {[%clk 0:03:02]} 5. c4 {[%clk 0:02:55]}  Nf6 {[%clk 0:03:01]} 6. Nc3 {[%clk 0:02:55]}  Bb4 {[%clk 0:03:01]} 7. Qd3 {[%clk 0:02:54]}  Qc7 {[%clk 0:03:01]} 8. Be2 {[%clk 0:02:53]}  Nc6 {[%clk 0:02:56]} 9. O-O {[%clk 0:02:53]}  Nxd4 {[%clk 0:02:48]} 10. Qxd4 {[%clk 0:02:52]}  Bd6 {[%clk 0:02:49]} 11. h3 {[%clk 0:02:45]}  Be5 {[%clk 0:02:48]} 12. Qd3 {[%clk 0:02:45]}  O-O {[%clk 0:02:48]} 13. f4 {[%clk 0:02:37]}  Bxc3 {[%clk 0:02:45]} 14. bxc3 {[%clk 0:02:37]}  d6 {[%clk 0:02:38]} 15. Ba3 {[%clk 0:02:34]}  Rd8 {[%clk 0:02:38]} 16. Rfd1 {[%clk 0:02:33]}  d5 {[%clk 0:02:37]} 17. e5 {[%clk 0:02:28]}  Ne4 {[%clk 0:02:35]} 18. cxd5 {[%clk 0:02:27]}  exd5 {[%clk 0:02:29]} 19. c4 {[%clk 0:02:22]}  Be6 {[%clk 0:01:56]} 20. cxd5 {[%clk 0:02:11]}  Bxd5 {[%clk 0:01:55]} 21. Rac1 {[%clk 0:02:04]}  Qb6+ {[%clk 0:01:31]} 22. Qd4 {[%clk 0:02:02]}  Qxd4+ {[%clk 0:01:30]} 23. Rxd4 {[%clk 0:02:01]}  Ng3 {[%clk 0:01:31]} 24. Bd1 {[%clk 0:01:38]}  Bxa2 {[%clk 0:01:26]} 25. Rxd8+ {[%clk 0:01:34]}  Rxd8 {[%clk 0:01:27]} 26. Bf3 {[%clk 0:01:34]}  h5 {[%clk 0:01:22]} 27. Rc7 {[%clk 0:01:29]}  Rd3 {[%clk 0:01:03]} 28. Be7 {[%clk 0:01:18]}  b5 {[%clk 0:00:58]} 29. Kf2 {[%clk 0:01:16]}  Nh1+ {[%clk 0:00:53]} 30. Ke2 {[%clk 0:00:55]}  Bc4 {[%clk 0:00:50]} 31. Ke1 {[%clk 0:00:48]}  Rd4 {[%clk 0:00:32]} 32. f5 {[%clk 0:00:35]}  Ng3 {[%clk 0:00:33]} 33. f6 {[%clk 0:00:30]}  g5 {[%clk 0:00:32]} 34. Kf2 {[%clk 0:00:24]}  h4 {[%clk 0:00:31]} 35. Bg4 {[%clk 0:00:18]}  Rf4+ {[%clk 0:00:30]} 36. Bf3 {[%clk 0:00:14]}  Nf5 {[%clk 0:00:24]} 37. Bb4 {[%clk 0:00:12]}  Nd4 {[%clk 0:00:23]} 38. Bd2 {[%clk 0:00:11]}  Rf5 {[%clk 0:00:23]} 39. Re7 {[%clk 0:00:09]}  Nxf3 {[%clk 0:00:23]} 40. gxf3 {[%clk 0:00:09]}  Bd5 {[%clk 0:00:23]} 41. Ke2 {[%clk 0:00:06]}  Bxf3+ {[%clk 0:00:21]} 42. Ke3 {[%clk 0:00:05]}  Bd5 {[%clk 0:00:22]} 43. Rd7 {[%clk 0:00:05]}  Be6 {[%clk 0:00:20]} 44. Rd8+ {[%clk 0:00:04]}  Kh7 {[%clk 0:00:21]} 45. Bb4 {[%clk 0:00:03]}  Rxe5+ {[%clk 0:00:20]} 46. Kd4 {[%clk 0:00:03]}  Rf5 {[%clk 0:00:19]} 0-1


[Site "https://www.chess.com"]

[Event "Titled Tuesday Blitz March 22 Early 2022"]
[White "Kouskoutis, Georgios-Alexandros"]
[Black "Topalov, Aleksandar"]
[WhiteFideId "4234049"]
[BlackFideId "925659"]
[WhiteElo "2130"]
[BlackElo "2158"]
[Result "0-1"]
[Round "03"]
[TimeControl "180+1"]
[Date "2022.03.22"]
[WhiteClock "0:00:01"]
[BlackClock "0:00:56"]

1. c4 {[%clk 0:03:00]}  Nf6 {[%clk 0:02:59]} 2. g3 {[%clk 0:03:01]}  c5 {[%clk 0:02:58]} 3. Bg2 {[%clk 0:03:02]}  g6 {[%clk 0:02:59]} 4. Nc3 {[%clk 0:03:01]}  Bg7 {[%clk 0:02:59]} 5. e4 {[%clk 0:03:02]}  d6 {[%clk 0:02:59]} 6. Nge2 {[%clk 0:03:03]}  O-O {[%clk 0:02:59]} 7. O-O {[%clk 0:03:03]}  Nc6 {[%clk 0:03:00]} 8. Rb1 {[%clk 0:03:00]}  a6 {[%clk 0:02:54]} 9. a4 {[%clk 0:02:49]}  e5 {[%clk 0:02:49]} 10. h3 {[%clk 0:02:48]}  Nd4 {[%clk 0:02:46]} 11. Nxd4 {[%clk 0:02:47]}  cxd4 {[%clk 0:02:45]} 12. Ne2 {[%clk 0:02:47]}  a5 {[%clk 0:02:40]} 13. d3 {[%clk 0:02:45]}  Nd7 {[%clk 0:02:39]} 14. Kh2 {[%clk 0:02:36]}  Nc5 {[%clk 0:02:39]} 15. b3 {[%clk 0:02:35]}  f5 {[%clk 0:02:38]} 16. Ba3 {[%clk 0:02:21]}  fxe4 {[%clk 0:02:38]} 17. dxe4 {[%clk 0:02:19]}  b6 {[%clk 0:02:30]} 18. Nc1 {[%clk 0:02:14]}  Bb7 {[%clk 0:02:22]} 19. f3 {[%clk 0:02:04]}  Bh6 {[%clk 0:02:20]} 20. Nd3 {[%clk 0:02:03]}  Qe7 {[%clk 0:02:04]} 21. Bc1 {[%clk 0:01:50]}  Bxc1 {[%clk 0:02:00]} 22. Rxc1 {[%clk 0:01:51]}  Bc6 {[%clk 0:01:59]} 23. h4 {[%clk 0:01:50]}  Rf7 {[%clk 0:01:58]} 24. Nxc5 {[%clk 0:01:36]}  bxc5 {[%clk 0:01:58]} 25. Qd3 {[%clk 0:01:35]}  Rb8 {[%clk 0:01:57]} 26. Rf2 {[%clk 0:01:32]}  Qb7 {[%clk 0:01:53]} 27. Rb1 {[%clk 0:01:30]}  Bxe4 {[%clk 0:01:51]} 28. Qf1 {[%clk 0:01:11]}  Bxb1 {[%clk 0:01:51]} 29. Qxb1 {[%clk 0:01:12]}  Qxb3 {[%clk 0:01:48]} 30. Qe1 {[%clk 0:01:10]}  Qc3 {[%clk 0:01:39]} 31. Qe2 {[%clk 0:00:25]}  d3 {[%clk 0:01:25]} 32. Qa2 {[%clk 0:00:13]}  Qd4 {[%clk 0:01:17]} 33. Rd2 {[%clk 0:00:12]}  Rfb7 {[%clk 0:01:09]} 34. Qa3 {[%clk 0:00:05]}  Rb3 {[%clk 0:01:08]} 35. Qc1 {[%clk 0:00:04]}  Rb2 {[%clk 0:01:06]} 36. h5 {[%clk 0:00:05]}  Rb1 {[%clk 0:00:57]} 37. Qa3 {[%clk 0:00:04]}  R8b3 {[%clk 0:00:57]} 38. Qa2 {[%clk 0:00:02]}  R1b2 {[%clk 0:00:56]} 39. Rxb2 {[%clk 0:00:02]}  Rxb2 {[%clk 0:00:56]} 40. Qa3 {[%clk 0:00:01]}  Qf2 {[%clk 0:00:56]} 0-1


[Site "https://www.chess.com"]

[Event "Titled Tuesday Blitz March 22 Early 2022"]
[White "Kozak, Antoni"]
[Black "Babazada, Khazar"]
[WhiteFideId "21832030"]
[BlackFideId "13413554"]
[WhiteElo "2236"]
[BlackElo "2418"]
[Result "0-1"]
[Round "03"]
[TimeControl "180+1"]
[Date "2022.03.22"]
[WhiteClock "0:00:09"]
[BlackClock "0:00:32"]

1. e4 {[%clk 0:03:00]}  Nf6 {[%clk 0:03:00]} 2. e5 {[%clk 0:02:59]}  Nd5 {[%clk 0:03:01]} 3. Nf3 {[%clk 0:02:59]}  d6 {[%clk 0:03:01]} 4. d4 {[%clk 0:02:59]}  Nb6 {[%clk 0:03:01]} 5. h3 {[%clk 0:02:54]}  g6 {[%clk 0:03:02]} 6. Bd3 {[%clk 0:02:52]}  Bg7 {[%clk 0:03:02]} 7. O-O {[%clk 0:02:51]}  O-O {[%clk 0:03:03]} 8. Bf4 {[%clk 0:02:49]}  Nc6 {[%clk 0:03:03]} 9. c3 {[%clk 0:02:41]}  Be6 {[%clk 0:02:56]} 10. Re1 {[%clk 0:02:38]}  dxe5 {[%clk 0:02:55]} 11. Nxe5 {[%clk 0:02:38]}  Nxe5 {[%clk 0:02:49]} 12. Bxe5 {[%clk 0:02:38]}  Bxe5 {[%clk 0:02:24]} 13. Rxe5 {[%clk 0:02:38]}  Qd6 {[%clk 0:02:25]} 14. Nd2 {[%clk 0:02:37]}  Nd7 {[%clk 0:02:24]} 15. Re3 {[%clk 0:02:29]}  c5 {[%clk 0:02:22]} 16. Ne4 {[%clk 0:02:19]}  Qb6 {[%clk 0:02:19]} 17. Nxc5 {[%clk 0:01:58]}  Nxc5 {[%clk 0:02:20]} 18. dxc5 {[%clk 0:01:59]}  Qxc5 {[%clk 0:02:20]} 19. Be4 {[%clk 0:01:59]}  Rad8 {[%clk 0:02:15]} 20. Rd3 {[%clk 0:01:59]}  Qb6 {[%clk 0:02:11]} 21. b3 {[%clk 0:01:57]}  Rxd3 {[%clk 0:02:09]} 22. Qxd3 {[%clk 0:01:57]}  Rd8 {[%clk 0:02:09]} 23. Qf3 {[%clk 0:01:57]}  Qa5 {[%clk 0:01:51]} 24. c4 {[%clk 0:01:45]}  b6 {[%clk 0:01:48]} 25. a4 {[%clk 0:01:12]}  Qb4 {[%clk 0:00:56]} 26. Rd1 {[%clk 0:01:09]}  Rxd1+ {[%clk 0:00:56]} 27. Qxd1 {[%clk 0:01:09]}  Qc3 {[%clk 0:00:57]} 28. Bf3 {[%clk 0:01:01]}  Kg7 {[%clk 0:00:56]} 29. h4 {[%clk 0:00:59]}  h5 {[%clk 0:00:56]} 30. g3 {[%clk 0:00:59]}  Bf5 {[%clk 0:00:55]} 31. Kg2 {[%clk 0:00:48]}  e6 {[%clk 0:00:53]} 32. Qd7 {[%clk 0:00:44]}  a5 {[%clk 0:00:44]} 33. Qb5 {[%clk 0:00:39]}  Bh3+ {[%clk 0:00:45]} 34. Kxh3 {[%clk 0:00:37]}  Qxf3 {[%clk 0:00:45]} 35. Qe5+ {[%clk 0:00:34]}  Kh7 {[%clk 0:00:42]} 36. Qe1 {[%clk 0:00:22]}  Qxb3 {[%clk 0:00:42]} 37. c5 {[%clk 0:00:22]}  bxc5 {[%clk 0:00:30]} 38. Qxa5 {[%clk 0:00:22]}  c4 {[%clk 0:00:30]} 39. Qc7 {[%clk 0:00:16]}  Qf3 {[%clk 0:00:30]} 40. Kh2 {[%clk 0:00:08]}  Qxf2+ {[%clk 0:00:30]} 41. Kh3 {[%clk 0:00:08]}  Qf3 {[%clk 0:00:29]} 42. Kh2 {[%clk 0:00:09]}  c3 {[%clk 0:00:30]} 43. a5 {[%clk 0:00:09]}  Qf2+ {[%clk 0:00:30]} 44. Kh3 {[%clk 0:00:09]}  c2 {[%clk 0:00:31]} 45. a6 {[%clk 0:00:08]}  Qf1+ {[%clk 0:00:31]} 46. Kh2 {[%clk 0:00:09]}  c1=Q {[%clk 0:00:32]} 0-1


[Site "https://www.chess.com"]

[Event "Titled Tuesday Blitz March 22 Early 2022"]
[White "Krzywda, Andrzej"]
[Black "Fawole, John Oyeyemi"]
[WhiteFideId "1114565"]
[BlackFideId "8501319"]
[WhiteElo "2098"]
[BlackElo "2091"]
[Result "1-0"]
[Round "03"]
[TimeControl "180+1"]
[Date "2022.03.22"]
[WhiteClock "0:00:16"]
[BlackClock "0:00:01"]

1. Nf3 {[%clk 0:03:00]}  Nf6 {[%clk 0:02:58]} 2. c4 {[%clk 0:02:59]}  c5 {[%clk 0:02:58]} 3. g3 {[%clk 0:02:59]}  Nc6 {[%clk 0:02:57]} 4. Bg2 {[%clk 0:03:00]}  d5 {[%clk 0:02:57]} 5. cxd5 {[%clk 0:02:59]}  Nxd5 {[%clk 0:02:56]} 6. Nc3 {[%clk 0:02:59]}  Nc7 {[%clk 0:02:55]} 7. O-O {[%clk 0:02:48]}  e5 {[%clk 0:02:54]} 8. d3 {[%clk 0:02:48]}  Be7 {[%clk 0:02:53]} 9. Nd2 {[%clk 0:02:47]}  O-O {[%clk 0:02:48]} 10. Bxc6 {[%clk 0:02:47]}  bxc6 {[%clk 0:02:47]} 11. Nc4 {[%clk 0:02:48]}  f6 {[%clk 0:02:41]} 12. b3 {[%clk 0:02:48]}  Bh3 {[%clk 0:02:40]} 13. Re1 {[%clk 0:02:48]}  Nd5 {[%clk 0:02:29]} 14. Bb2 {[%clk 0:02:41]}  a5 {[%clk 0:02:25]} 15. Na4 {[%clk 0:02:37]}  Qc7 {[%clk 0:02:07]} 16. Rc1 {[%clk 0:02:35]}  Rfb8 {[%clk 0:01:52]} 17. Ne3 {[%clk 0:02:18]}  Qa7 {[%clk 0:01:20]} 18. Nxd5 {[%clk 0:01:54]}  cxd5 {[%clk 0:01:18]} 19. Ba3 {[%clk 0:01:55]}  Rc8 {[%clk 0:01:11]} 20. e4 {[%clk 0:01:55]}  dxe4 {[%clk 0:00:49]} 21. dxe4 {[%clk 0:01:54]}  Be6 {[%clk 0:00:36]} 22. Qe2 {[%clk 0:01:54]}  Rab8 {[%clk 0:00:28]} 23. Nb2 {[%clk 0:01:32]}  Qb7 {[%clk 0:00:13]} 24. Nc4 {[%clk 0:01:29]}  Qa6 {[%clk 0:00:12]} 25. Ne3 {[%clk 0:01:22]}  Qa7 {[%clk 0:00:12]} 26. Red1 {[%clk 0:01:19]}  a4 {[%clk 0:00:11]} 27. Nd5 {[%clk 0:01:02]}  Bf8 {[%clk 0:00:10]} 28. bxa4 {[%clk 0:00:38]}  Qxa4 {[%clk 0:00:09]} 29. Qe3 {[%clk 0:00:35]}  Ra8 {[%clk 0:00:06]} 30. Rd3 {[%clk 0:00:32]}  Ra6 {[%clk 0:00:05]} 31. Rdc3 {[%clk 0:00:29]}  Rca8 {[%clk 0:00:05]} 32. Bxc5 {[%clk 0:00:29]}  Bxc5 {[%clk 0:00:04]} 33. Rxc5 {[%clk 0:00:29]}  Qxa2 {[%clk 0:00:03]} 34. Nc7 {[%clk 0:00:27]}  Ra3 {[%clk 0:00:01]} 35. R5c3 {[%clk 0:00:16]} 1-0


[Site "https://www.chess.com"]

[Event "Titled Tuesday Blitz March 22 Early 2022"]
[White "Kubicka, Anna"]
[Black "Grandelius, Nils"]
[WhiteFideId "1152254"]
[BlackFideId "1710400"]
[WhiteElo "2000"]
[BlackElo "2617"]
[Result "0-1"]
[Round "03"]
[TimeControl "180+1"]
[Date "2022.03.22"]
[WhiteClock "0:00:10"]
[BlackClock "0:00:06"]

1. e4 {[%clk 0:03:00]}  c6 {[%clk 0:02:59]} 2. Nc3 {[%clk 0:03:00]}  d5 {[%clk 0:02:59]} 3. Nf3 {[%clk 0:02:59]}  dxe4 {[%clk 0:02:58]} 4. Nxe4 {[%clk 0:03:00]}  Nf6 {[%clk 0:02:59]} 5. Nxf6+ {[%clk 0:03:00]}  exf6 {[%clk 0:02:58]} 6. d4 {[%clk 0:02:58]}  Bd6 {[%clk 0:02:59]} 7. Be3 {[%clk 0:02:58]}  O-O {[%clk 0:02:58]} 8. Bd3 {[%clk 0:02:59]}  Re8 {[%clk 0:02:58]} 9. O-O {[%clk 0:02:56]}  Bg4 {[%clk 0:02:58]} 10. h3 {[%clk 0:02:53]}  Bh5 {[%clk 0:02:58]} 11. Be2 {[%clk 0:02:49]}  Nd7 {[%clk 0:02:54]} 12. c4 {[%clk 0:02:48]}  Rc8 {[%clk 0:02:48]} 13. Re1 {[%clk 0:02:45]}  Nf8 {[%clk 0:02:43]} 14. Qb3 {[%clk 0:02:44]}  Qd7 {[%clk 0:02:36]} 15. Rad1 {[%clk 0:02:41]}  Bb8 {[%clk 0:02:19]} 16. d5 {[%clk 0:02:38]}  c5 {[%clk 0:02:16]} 17. Nd2 {[%clk 0:02:20]}  Bg6 {[%clk 0:02:04]} 18. Nf1 {[%clk 0:02:09]}  b6 {[%clk 0:01:50]} 19. Bg4 {[%clk 0:02:08]}  Bf5 {[%clk 0:01:39]} 20. Bxf5 {[%clk 0:02:08]}  Qxf5 {[%clk 0:01:40]} 21. Bc1 {[%clk 0:02:06]}  Ng6 {[%clk 0:01:33]} 22. Qa4 {[%clk 0:01:49]}  Red8 {[%clk 0:01:20]} 23. Qa3 {[%clk 0:01:26]}  Ne5 {[%clk 0:01:15]} 24. Ne3 {[%clk 0:01:25]}  Qg6 {[%clk 0:01:13]} 25. Kf1 {[%clk 0:01:24]}  h5 {[%clk 0:01:04]} 26. Qc3 {[%clk 0:01:24]}  Nd7 {[%clk 0:00:56]} 27. Qc2 {[%clk 0:01:17]}  Qxc2 {[%clk 0:00:53]} 28. Nxc2 {[%clk 0:01:18]}  Ne5 {[%clk 0:00:50]} 29. b3 {[%clk 0:01:16]}  g6 {[%clk 0:00:51]} 30. Bb2 {[%clk 0:01:09]}  Bd6 {[%clk 0:00:51]} 31. Na3 {[%clk 0:01:06]}  a6 {[%clk 0:00:51]} 32. Nb1 {[%clk 0:01:05]}  b5 {[%clk 0:00:51]} 33. Nd2 {[%clk 0:01:03]}  bxc4 {[%clk 0:00:30]} 34. Nxc4 {[%clk 0:00:56]}  Nxc4 {[%clk 0:00:23]} 35. bxc4 {[%clk 0:00:57]}  f5 {[%clk 0:00:23]} 36. Bc3 {[%clk 0:00:52]}  Rd7 {[%clk 0:00:18]} 37. Rb1 {[%clk 0:00:50]}  Kh7 {[%clk 0:00:15]} 38. Rb6 {[%clk 0:00:49]}  Ra8 {[%clk 0:00:15]} 39. Reb1 {[%clk 0:00:43]}  Re8 {[%clk 0:00:15]} 40. Rxa6 {[%clk 0:00:39]}  Re4 {[%clk 0:00:15]} 41. Ra4 {[%clk 0:00:36]}  g5 {[%clk 0:00:12]} 42. Re1 {[%clk 0:00:35]}  Kg6 {[%clk 0:00:12]} 43. Rxe4 {[%clk 0:00:33]}  fxe4 {[%clk 0:00:13]} 44. Ra6 {[%clk 0:00:31]}  Kf5 {[%clk 0:00:13]} 45. Ke2 {[%clk 0:00:29]}  Be5 {[%clk 0:00:06]} 46. Bxe5 {[%clk 0:00:20]}  Kxe5 {[%clk 0:00:07]} 47. Rc6 {[%clk 0:00:19]}  Kd4 {[%clk 0:00:06]} 48. a4 {[%clk 0:00:16]}  Rb7 {[%clk 0:00:06]} 49. d6 {[%clk 0:00:15]}  Rb2+ {[%clk 0:00:05]} 50. Ke1 {[%clk 0:00:15]}  Kd3 {[%clk 0:00:06]} 51. f3 {[%clk 0:00:10]}  e3 {[%clk 0:00:06]} 0-1


[Site "https://www.chess.com"]

[Event "Titled Tuesday Blitz March 22 Early 2022"]
[White "Kupervaser, Erez"]
[Black "Weetik, Vjacheslav"]
[WhiteFideId "2814587"]
[BlackFideId "4153472"]
[WhiteElo "1763"]
[BlackElo "2469"]
[Result "0-1"]
[Round "03"]
[TimeControl "180+1"]
[Date "2022.03.22"]
[WhiteClock "0:00:04"]
[BlackClock "0:00:14"]

1. e4 {[%clk 0:03:00]}  c6 {[%clk 0:02:59]} 2. d4 {[%clk 0:02:59]}  d5 {[%clk 0:03:00]} 3. e5 {[%clk 0:03:00]}  Bf5 {[%clk 0:03:00]} 4. Nc3 {[%clk 0:02:59]}  e6 {[%clk 0:03:00]} 5. g4 {[%clk 0:02:59]}  Bg6 {[%clk 0:03:00]} 6. Nge2 {[%clk 0:03:00]}  c5 {[%clk 0:02:58]} 7. h4 {[%clk 0:02:56]}  h5 {[%clk 0:02:58]} 8. Nf4 {[%clk 0:02:23]}  Bh7 {[%clk 0:02:58]} 9. Nxh5 {[%clk 0:02:21]}  Nc6 {[%clk 0:02:57]} 10. Bb5 {[%clk 0:02:15]}  Qc7 {[%clk 0:02:57]} 11. Be3 {[%clk 0:02:04]}  O-O-O {[%clk 0:02:53]} 12. Bxc6 {[%clk 0:02:00]}  bxc6 {[%clk 0:02:53]} 13. f4 {[%clk 0:01:50]}  cxd4 {[%clk 0:02:52]} 14. Qxd4 {[%clk 0:01:50]}  c5 {[%clk 0:02:52]} 15. Qa4 {[%clk 0:01:51]}  Qb7 {[%clk 0:02:42]} 16. O-O-O {[%clk 0:00:47]}  d4 {[%clk 0:02:34]} 17. Nb5 {[%clk 0:00:47]}  a6 {[%clk 0:02:28]} 18. Na3 {[%clk 0:00:35]}  Ne7 {[%clk 0:01:59]} 19. Bd2 {[%clk 0:00:34]}  Nd5 {[%clk 0:01:53]} 20. Nc4 {[%clk 0:00:26]}  Qb5 {[%clk 0:01:53]} 21. Qxb5 {[%clk 0:00:17]}  axb5 {[%clk 0:01:53]} 22. Na3 {[%clk 0:00:18]}  c4 {[%clk 0:01:07]} 23. Nxb5 {[%clk 0:00:17]}  Bc5 {[%clk 0:01:07]} 24. Be1 {[%clk 0:00:13]}  Ne3 {[%clk 0:01:05]} 25. Rd2 {[%clk 0:00:12]}  Nxg4 {[%clk 0:01:04]} 26. Rg1 {[%clk 0:00:09]}  Bf5 {[%clk 0:00:54]} 27. Nxg7 {[%clk 0:00:07]}  c3 {[%clk 0:00:54]} 28. bxc3 {[%clk 0:00:06]}  dxc3 {[%clk 0:00:55]} 29. Rxd8+ {[%clk 0:00:06]}  Rxd8 {[%clk 0:00:56]} 30. Nxf5 {[%clk 0:00:06]}  exf5 {[%clk 0:00:50]} 31. Rg3 {[%clk 0:00:05]}  Be3+ {[%clk 0:00:50]} 32. Rxe3 {[%clk 0:00:04]}  Nxe3 {[%clk 0:00:51]} 33. Bxc3 {[%clk 0:00:04]}  Rd1+ {[%clk 0:00:40]} 34. Kb2 {[%clk 0:00:04]}  Kd7 {[%clk 0:00:41]} 35. Nd6 {[%clk 0:00:04]}  Ke6 {[%clk 0:00:40]} 36. a4 {[%clk 0:00:02]}  Nd5 {[%clk 0:00:37]} 37. a5 {[%clk 0:00:01]}  Rg1 {[%clk 0:00:23]} 38. Kb3 {[%clk 0:00:01]}  Rg8 {[%clk 0:00:24]} 39. Kc4 {[%clk 0:00:01]}  Nxf4 {[%clk 0:00:20]} 40. Bd2 {[%clk 0:00:02]}  Nd5 {[%clk 0:00:20]} 41. a6 {[%clk 0:00:03]}  f4 {[%clk 0:00:20]} 42. Kb5 {[%clk 0:00:03]}  f3 {[%clk 0:00:20]} 43. Kc6 {[%clk 0:00:03]}  f2 {[%clk 0:00:19]} 44. Kb7 {[%clk 0:00:03]}  f1=Q {[%clk 0:00:18]} 45. a7 {[%clk 0:00:04]}  Qb1+ {[%clk 0:00:14]} 0-1


[Site "https://www.chess.com"]

[Event "Titled Tuesday Blitz March 22 Early 2022"]
[White "Lakshmi C"]
[Black "Tristan, Leonardo"]
[WhiteFideId "25035347"]
[BlackFideId "113816"]
[WhiteElo "1775"]
[BlackElo "2404"]
[Result "0-1"]
[Round "03"]
[TimeControl "180+1"]
[Date "2022.03.22"]
[WhiteClock "0:00:13"]
[BlackClock "0:01:19"]

1. e4 {[%clk 0:03:00]}  d5 {[%clk 0:02:58]} 2. exd5 {[%clk 0:03:00]}  Qxd5 {[%clk 0:02:59]} 3. Nc3 {[%clk 0:02:59]}  Qa5 {[%clk 0:02:59]} 4. d4 {[%clk 0:02:59]}  Nf6 {[%clk 0:03:00]} 5. Nf3 {[%clk 0:03:00]}  Bf5 {[%clk 0:03:00]} 6. Bc4 {[%clk 0:02:55]}  e6 {[%clk 0:03:00]} 7. O-O {[%clk 0:02:53]}  Bb4 {[%clk 0:02:59]} 8. Bd2 {[%clk 0:02:52]}  Nc6 {[%clk 0:03:00]} 9. a3 {[%clk 0:02:52]}  Bxc3 {[%clk 0:03:00]} 10. Bxc3 {[%clk 0:02:52]}  Qb6 {[%clk 0:03:01]} 11. d5 {[%clk 0:02:44]}  O-O-O {[%clk 0:03:01]} 12. Nd4 {[%clk 0:02:00]}  Nxd5 {[%clk 0:02:44]} 13. Nxf5 {[%clk 0:01:52]}  Nxc3 {[%clk 0:02:43]} 14. Qf3 {[%clk 0:01:49]}  Qxb2 {[%clk 0:02:30]} 15. Ba6 {[%clk 0:01:07]}  Rd5 {[%clk 0:02:09]} 16. Ne3 {[%clk 0:01:00]}  bxa6 {[%clk 0:02:05]} 17. Nxd5 {[%clk 0:00:53]}  Nxd5 {[%clk 0:02:06]} 18. Qxf7 {[%clk 0:00:49]}  Qf6 {[%clk 0:02:06]} 19. Qh5 {[%clk 0:00:48]}  Nd4 {[%clk 0:01:40]} 20. Qd1 {[%clk 0:00:24]}  Rd8 {[%clk 0:01:30]} 21. Qd3 {[%clk 0:00:23]}  e5 {[%clk 0:01:26]} 22. c3 {[%clk 0:00:15]}  Nf4 {[%clk 0:01:24]} 23. Qc4 {[%clk 0:00:14]}  Qc6 {[%clk 0:01:19]} 24. Qb4 {[%clk 0:00:13]}  Qxg2# {[%clk 0:01:19]} 0-1


[Site "https://www.chess.com"]